fUSD/lending_fUSD_20240115
["ID","MTS","AMOUNT","RATE_DAILY","PERIOD"]
[311660841,1705290643892,-1321.59822035,0.000251,2]
[311660842,1705290643901,-150.0,0.00025118,2]
[311660843,1705290643910,-500.0,0.00025213,2]
[311660844,1705290643920,-200.0,0.00025213,2]
[311660845,1705290643930,-160.94994351,0.00025243,2]
[311660846,1705290643939,-162.189049,0.00025296,7]
[311660847,1705290643949,-162.189049,0.00025296,7]
[311660848,1705290643958,-151.0,0.00025296,7]
[311660849,1705290643968,-1000.0,0.00025296,3]
[311660850,1705290643976,-442.15529069,0.00025296,3]
[311660851,1705290643986,-1000.0,0.00025296,3]
[311660852,1705290643995,-198.2899033,0.00025296,3]
[311660854,1705290644005,-2456.06832824,0.00025296,3]
[311660856,1705290644014,-811.10716066,0.00025296,3]
[311660858,1705290644023,-340.02140062,0.00025296,3]
[311660860,1705290644033,-1000.0,0.00025296,3]
[311660861,1705290644041,-3023.42847332,0.00025296,3]
[311660862,1705290644050,-296.82223492,0.00025296,3]
[311660863,1705290644059,-8253.54902347,0.00025296,3]
[311660864,1705290644068,-4880.15912343,0.00025296,3]
[311660865,1705290644077,-241.35441816,0.00025296,3]
[311660866,1705290644085,-4818.60197358,0.00025296,3]
[311660867,1705290644094,-410.57888355,0.00025296,3]
[311660868,1705290644103,-1000.0,0.00025296,3]
[311660869,1705290644112,-624.68717014,0.00025296,3]
[311660870,1705290644122,-1000.0,0.00025296,3]
[311660871,1705290644131,-1000.0,0.00025296,3]
[311660872,1705290644140,-152.94,0.00025608,2]
[311660873,1705290644154,-408.24,0.00025608,2]
[311660874,1705290644164,-150.0,0.00025778,2]
[311660875,1705290644173,-209.56426997,0.00025778,2]
[311660876,1705290644182,-255.77,0.00025817,2]
[311660877,1705290644191,-500.0,0.00025836,2]
[311660878,1705290644202,-200.0,0.00025836,2]
[311660879,1705290644212,-151.0,0.00025837,7]
[311660881,1705290644221,-151.0,0.00025837,7]
[311660883,1705290644231,-14545.6522286,0.00025837,2]
[311660884,1705290644241,-495.66707356,0.00025837,2]
[311660885,1705290644250,-201.0,0.00025855,6]
[311660886,1705290644258,-3933.0,0.000259,2]
[311660887,1705290644268,-38884.74540999,0.000259,2]
[311660888,1705290646331,-1765.20891081,0.000259,2]
[311660889,1705290646342,-2342.94315,0.000259,2]
[311660890,1705290646380,-4832.1025292,0.000259,2]
[311660891,1705290646389,-205.315913,0.000259,7]
[311660892,1705290646399,-162.189049,0.000259,7]
[311660893,1705290646408,-151.0,0.000259,7]
[311660894,1705290646416,-151.0,0.000259,7]
[311660896,1705290646425,-151.0,0.000259,7]
[311660898,1705290646434,-151.0,0.000259,7]
[311660900,1705290646444,-151.0,0.000259,7]
[311660902,1705290646452,-151.0,0.000259,7]
[311660904,1705290646461,-487.726044,0.000259,7]
[311660906,1705290646470,-487.726044,0.000259,7]
[311660908,1705290646479,-151.0,0.000259,7]
[311660910,1705290646488,-151.0,0.000259,7]
[311660912,1705290646498,-151.0,0.000259,7]
[311660914,1705290646507,-151.0,0.000259,7]
[311660916,1705290646515,-10000.0,0.00025902,2]
[311660917,1705290646525,-160.94994351,0.00025928,2]
[311660918,1705290646534,-1000.0,0.00025935,2]
[311660919,1705290646544,-5034.55909259,0.00025955,5]
[311660920,1705290646555,-1000.0,0.00025955,3]
[311660921,1705290646565,-1000.0,0.00025955,3]
[311660922,1705290646574,-151.0,0.00025955,7]
[311660923,1705290646585,-151.0,0.00025955,7]
[311660924,1705290646594,-1007.6671,0.00025998,2]
[311660926,1705290646604,-200.0,0.00026,2]
[311660928,1705290646613,-508.50114416,0.00026,2]
[311660930,1705290646622,-2003.52662467,0.00026,2]
[311661471,1705291210914,250.0,0.000205,2]
[311661472,1705291480379,450.00449938,0.00022,2]
[311661484,1705291832288,-181.47,0.00022147,2]
[311661485,1705291832299,-161.90767167,0.000228,2]
[311661486,1705291832313,-480.4111652,0.00022816,2]
[311661487,1705291832326,-19.5888348,0.00022816,2]
[311661488,1705291832336,-423.19448151,0.00022879,2]
[311661489,1705291832348,-300.0,0.00022879,2]
[311661490,1705291832397,-1127.90296006,0.00022879,2]
[311661491,1705291832410,-1765.8505119,0.00022879,2]
[311661492,1705291832460,-266.569,0.00022879,2]
[311661493,1705291832472,-624.39606294,0.00022879,2]
[311661494,1705291832485,-193.3401191,0.00022879,2]
[311661495,1705291832494,-1906.570265,0.0002288,2]
[311661496,1705291832507,-1009.20539725,0.0002288,2]
[311661497,1705291832538,-461.57652245,0.0002288,2]
[311661498,1705291832550,-1033.7,0.0002288,2]
[311661533,1705291838322,-1378.25040696,0.0002288,2]
[311661534,1705291838604,-8169.09570834,0.0002288,2]
[311661535,1705291838616,-170.1079,0.0002288,2]
[311661536,1705291838626,-275.9781,0.000229,2]
[311661537,1705291838637,-1373.8392,0.000229,2]
[311661538,1705291838648,-1132.84267599,0.000229,2]
[311661539,1705291838658,-258.61319956,0.00022978,2]
[311661540,1705291838668,-3344.54348692,0.00022979,2]
[311661541,1705291838689,-951.26132272,0.00022979,2]
[311661542,1705291838702,-455.23866117,0.00022979,2]
[311661543,1705291838715,-350.26905264,0.00022979,2]
[311661545,1705291838731,-2805.4573378,0.00022979,2]
[311661547,1705291838741,-76150.25772147,0.0002298,2]
[311661550,1705291838750,-106244.28494073,0.00023,2]
[311661555,1705291838769,-1163.3687018,0.00023,2]
[311661752,1705291840715,-1250.511229,0.00023,2]
[311661851,1705291841664,-834.78483813,0.00023,2]
[311661979,1705291844403,-5022.32071108,0.00023,2]
[311661980,1705291844570,-3832.75112191,0.00023,2]
[311661981,1705291844629,-24038.94638589,0.00023,2]
[311661982,1705291844639,-434.82801338,0.00023,2]
[311661983,1705291844648,-20520.92491008,0.00023,2]
[311661989,1705291846340,-2133.9594,0.00023,2]
[311661990,1705291847223,-343.9944031,0.00023,2]
[311661991,1705291847235,-411.5555969,0.00023,2]
[311661994,1705292303231,460.8576,0.00022139,14]
[311661995,1705292358555,218.9,0.00020142,2]
[311661996,1705292362290,232.37,0.00022012,2]
[311661997,1705292386335,150.0,0.00021942,2]
[311661998,1705292639326,443.49,0.00021831,2]
[311661999,1705292710114,250.0,0.000205,2]
[311662000,1705292734073,201.0,0.00021168,2]
[311662001,1705292788168,159.13,0.00022008,2]
[311662002,1705292790831,220.4,0.00019845,2]
[311662003,1705292833313,216.87,0.00021747,2]
[311662004,1705293017362,301.14108599,0.000221,2]
[311662011,1705293037545,-1914.12881296,0.00022101,2]
[311662012,1705293037554,-384.0309261,0.00022102,2]
[311662013,1705293037563,-220.4,0.00022109,2]
[311662014,1705293037573,-159.13,0.00022112,2]
[311662015,1705293037583,-164.01553331,0.00022127,2]
[311662016,1705293037592,-159.13,0.00022216,2]
[311662017,1705293037602,-758.21538631,0.00022244,2]
[311662018,1705293037611,-180.5,0.00022295,2]
[311662019,1705293037620,-159.13,0.0002232,2]
[311662020,1705293037629,-1617.4387109,0.00022339,2]
[311662021,1705293037639,-3452.03288229,0.0002234,2]
[311662022,1705293037651,-1993.48403408,0.00022341,2]
[311662023,1705293037680,-424.88308538,0.00022341,2]
[311662024,1705293037799,-2228.42864659,0.00022341,2]
[311662025,1705293037809,-159.13,0.00022425,2]
[311662026,1705293037819,-201.0,0.00022507,4]
[311662027,1705293037828,-159.13,0.00022529,2]
[311662028,1705293037837,-201.38,0.00022555,2]
[311662029,1705293037846,-150.00000001,0.00022556,2]
[311662030,1705293037855,-159.13,0.00022633,2]
[311662031,1705293037864,-216.87,0.00022725,2]
[311662032,1705293037873,-159.13,0.00022737,2]
[311662033,1705293037882,-419.37593271,0.00022768,2]
[311662034,1705293037891,-247.80729858,0.00022768,2]
[311662035,1705293037900,-159.13,0.00022842,2]
[311662037,1705293037908,-522.08,0.00022881,2]
[311662038,1705293037918,-413.22667803,0.00022896,2]
[311662041,1705293037928,-301.14108599,0.00022896,2]
[311662042,1705293037938,-316.977,0.00022897,2]
[311662044,1705293037947,-1933.4344,0.00022897,2]
[311662046,1705293037956,-465.528,0.00022897,2]
[311662048,1705293037965,-258.61319956,0.00022897,2]
[311662050,1705293037974,-13060.48846663,0.00022898,2]
[311662053,1705293037989,-2929.77548137,0.00022898,2]
[311662057,1705293038021,-609.47680672,0.00022898,2]
[311662257,1705293039963,-865.44923091,0.00022898,2]
[311662260,1705293039975,-322.87653265,0.00022898,2]
[311662262,1705293039986,-280.69400187,0.00022898,2]
[311662264,1705293039997,-427.03158,0.00022898,2]
[311662266,1705293040008,-646.66199997,0.00022898,2]
[311662522,1705293042447,-3352.22104586,0.00022898,2]
[311662524,1705293042458,-3245.24029664,0.00022898,2]
[311662526,1705293042470,-1966.10422234,0.00022898,2]
[311662536,1705293042559,-7573.40856718,0.00022898,2]
[311662538,1705293042573,-395.57673,0.00022898,2]
[311662544,1705293042629,-7099.66313786,0.00022898,2]
[311662547,1705293042640,-3260.83306581,0.00022899,2]
[311662549,1705293042650,-10385.6674,0.000229,2]
[311662551,1705293042659,-5159.171,0.000229,2]
[311662553,1705293042669,-2115.3493,0.000229,2]
[311662555,1705293042679,-183.7325,0.000229,2]
[311662557,1705293042691,-629.328,0.000229,2]
[311662559,1705293042700,-1000.0,0.000229,2]
[311662561,1705293042710,-2500.0,0.000229,2]
[311662563,1705293042720,-21111.1262,0.000229,2]
[311662565,1705293042729,-159.13,0.00022946,2]
[311662567,1705293042739,-200.08424368,0.00022996,2]
[311662569,1705293042749,-278.87214514,0.00022996,2]
[311662571,1705293042759,-247.58780902,0.00022996,2]
[311662573,1705293042769,-155.25829669,0.00022996,2]
[311662575,1705293042778,-261.12780613,0.00022996,2]
[311662577,1705293042787,-3632.85908805,0.00022997,2]
[311662579,1705293042796,-6995.48255334,0.00022997,2]
[311662583,1705293042822,-518.76378743,0.00022997,2]
[311662585,1705293042831,-264.98641595,0.00022998,2]
[311662587,1705293042841,-145.33382483,0.00022998,2]
[311662594,1705293042917,-10.00245558,0.00022998,2]
[311662595,1705293042926,-1814.16564446,0.00022998,2]
[311662596,1705293042935,-271.50856277,0.00022998,2]
[311662597,1705293042945,-782.46388582,0.00022998,2]
[311662598,1705293042954,-2980.80661866,0.00022998,2]
[311662856,1705293045542,-614.77598686,0.00022897,2]
[311662859,1705293045554,-3046.25523839,0.00022897,2]
[311662861,1705293045564,-9925.42383132,0.00022998,2]
[311662863,1705293045574,-156.93163912,0.00022998,2]
[311662865,1705293045585,-2286.39854772,0.00022998,2]
[311662867,1705293045595,-2314.24604604,0.00022998,2]
[311662869,1705293045604,-158.10426244,0.00022998,2]
[311662871,1705293045615,-171.83252152,0.00022998,2]
[311662873,1705293045624,-686.04981933,0.00022998,2]
[311662875,1705293045634,-359.89994491,0.00022998,2]
[311662877,1705293045643,-372.43201707,0.00022998,2]
[311662879,1705293045652,-2604.12603214,0.00022998,2]
[311662897,1705293045824,-719.8,0.00022998,2]
[311663155,1705293188531,17229.38437098,0.0003,120]
[311663156,1705293203814,350.00000538,0.00022,2]
[311663157,1705293277755,1000.0,0.00022,2]
[311663158,1705293309587,210.18,0.00022013,2]
[311663159,1705293355824,1604.6010116,0.00020698,2]
[311663160,1705293371806,1604.6010116,0.00020698,2]
[311663161,1705293387798,198.8562768,0.00020698,2]
[311663162,1705293453884,201.0,0.00021846,2]
[311663163,1705293482600,1054.53237096,0.0003,120]
[311663164,1705293504986,1604.6010116,0.00020698,2]
[311663165,1705293533190,1604.6010116,0.00020698,2]
[311663166,1705293555188,198.8562768,0.00020698,2]
[311663167,1705293715359,1604.6010116,0.00020698,2]
[311663168,1705293737347,1604.6010116,0.00020698,2]
[311663169,1705293757347,198.8562768,0.00020698,2]
[311663170,1705293843636,878.5619,0.00020608,2]
[311663171,1705293988253,246.20183111,0.00021852,2]
[311663173,1705294174197,201.0,0.00021259,2]
[311663174,1705294185624,155.0,0.000221,2]
[311663175,1705294186362,4270.25221425,0.000221,2]
[311663176,1705294189276,174.09339987,0.000221,2]
[311663177,1705294192337,5440.4877654,0.000221,2]
[311663178,1705294204517,696.15773733,0.000221,2]
[311663179,1705294210724,250.0,0.000205,2]
[311663182,1705294231744,-236.32331097,0.00022114,2]
[311663183,1705294231753,-2455.11805264,0.00022114,2]
[311663418,1705294240726,-163.63006802,0.00022114,2]
[311663421,1705294240738,-184.33602706,0.00022115,2]
[311663427,1705294240795,-7382.76460547,0.00022115,2]
[311663441,1705294240911,-13528.26827861,0.00022115,2]
[311663443,1705294240921,-210.9,0.00022126,2]
[311663445,1705294240930,-223.75,0.0002232,2]
[311663447,1705294240941,-654.55,0.00022381,2]
[311663449,1705294240950,-23890.0,0.00022561,2]
[311663451,1705294240959,-201.0,0.00022694,4]
[311663453,1705294240969,-754.0603,0.000227,2]
[311663455,1705294240978,-264.77,0.000227,2]
[311663457,1705294240989,-400.35879012,0.000227,2]
[311663459,1705294240998,-450.13107404,0.000227,2]
[311663461,1705294241008,-250.0,0.00022709,2]
[311663463,1705294241018,-263.77062032,0.00022798,2]
[311663465,1705294241027,-5277.2684587,0.00022798,2]
[311663467,1705294241036,-717.59314337,0.00022798,2]
[311663469,1705294241045,-157.03277806,0.00022799,2]
[311663471,1705294241054,-4251.4571685,0.00022799,2]
[311663473,1705294241064,-708521.2555813,0.00022799,2]
[311663475,1705294241073,-1250.0,0.000228,2]
[311663477,1705294241082,-1250.0,0.000228,2]
[311663479,1705294241091,-499.99,0.000228,2]
[311663481,1705294241101,-32844.21,0.000228,2]
[311663483,1705294241111,-73696.63,0.000228,2]
[311663485,1705294241120,-1944.34369797,0.000228,2]
[311663487,1705294241129,-154.8022516,0.000228,2]
[311663489,1705294241138,-2000.0,0.00022852,2]
[311663491,1705294241148,-269.91342988,0.00022889,2]
[311663493,1705294241158,-174.00626534,0.00022898,2]
[311663495,1705294241174,-155.73040301,0.00022898,2]
[311663497,1705294241184,-200.1676584,0.00022898,2]
[311663499,1705294241194,-2788.50719575,0.00022898,2]
[311663501,1705294241204,-319.05961092,0.00022899,2]
[311663503,1705294241215,-847.78149391,0.00022899,2]
[311663505,1705294241224,-1000.0,0.000229,2]
[311663507,1705294241236,-500.0,0.000229,8]
[311663509,1705294241248,-230.29533501,0.00022997,3]
[311663511,1705294241258,-366.5423488,0.00022997,2]
[311663513,1705294241269,-876.79464213,0.00022998,2]
[311663515,1705294241279,-10559.96828386,0.00022998,2]
[311663517,1705294241288,-2142.99004246,0.00022998,2]
[311663519,1705294241297,-157.54628017,0.00022998,2]
[311663521,1705294241306,-3380.70731936,0.00022998,2]
[311663523,1705294241315,-488.80547889,0.00022998,2]
[311663525,1705294241324,-1702.49340054,0.00022998,2]
[311663527,1705294241333,-167.24558487,0.00022998,2]
[311663529,1705294241343,-156.04852675,0.00022998,2]
[311663531,1705294241352,-475.08141736,0.00022998,2]
[311663533,1705294241361,-286.16377693,0.00022998,2]
[311663535,1705294241371,-3155.22096946,0.00022998,2]
[311663536,1705294241380,-155.17933276,0.00022998,2]
[311663537,1705294241390,-264.97865919,0.00022998,2]
[311663538,1705294241400,-2011.64005001,0.00022998,2]
[311663539,1705294241409,-207.2278993,0.00022998,2]
[311663540,1705294241419,-156.24244714,0.00022998,2]
[311663541,1705294241429,-267.4268239,0.00022998,2]
[311663542,1705294241438,-198.36733211,0.00022998,2]
[311663543,1705294241448,-175.42051246,0.00022998,2]
[311663544,1705294241457,-299.06887078,0.00022998,2]
[311663546,1705294241466,-155.62597367,0.00022998,2]
[311663547,1705294241476,-22623.08727404,0.00022998,2]
[311663549,1705294241488,-156.088308,0.00022998,7]
[311663551,1705294241497,-151.0,0.00022998,7]
[311663553,1705294241506,-584.294225,0.00022998,7]
[311663555,1705294241515,-584.294225,0.00022998,7]
[311663557,1705294241525,-151.0,0.00022998,7]
[311663559,1705294241533,-297.109383,0.00022998,7]
[311663561,1705294241542,-177.154913,0.00022998,7]
[311663563,1705294241551,-151.0,0.00022998,7]
[311663565,1705294241560,-151.0,0.00022998,7]
[311663567,1705294241569,-151.0,0.00022998,7]
[311663569,1705294241578,-158.75214339,0.00022999,2]
[311663571,1705294241588,-174.5351454,0.00022999,2]
[311663573,1705294241597,-523.44697741,0.00022999,2]
[311663575,1705294241607,-196.52130754,0.00022999,2]
[311663577,1705294241616,-235.0317136,0.00022999,2]
[311663579,1705294241625,-458798.3992047,0.00023,2]
[311663585,1705294241668,-767.34705557,0.00023,2]
[311663685,1705294242631,-1428.25620969,0.00023,2]
[311663691,1705294242693,-2419.7351,0.00023,2]
[311663693,1705294242705,-4015.27110416,0.00023,2]
[311663997,1705294245801,-299.975,0.00023,2]
[311664011,1705294245972,-2609.23511465,0.00023,2]
[311664080,1705294264174,208.0,0.00021259,2]
[311664081,1705294269798,220.83,0.00021565,2]
[311664083,1705294753654,235.76,0.00020463,2]
[311664084,1705294811406,250.0,0.000205,2]
[311664085,1705294875705,151.09386413,0.00020479,2]
[311664086,1705294882469,353.81,0.00022089,2]
[311664087,1705294981067,2000.0,0.000216,2]
[311664088,1705294981286,2000.0,0.000206,2]
[311664089,1705294981751,2000.0,0.000196,2]
[311664090,1705294982022,2027.845359,0.000186,2]
[311664091,1705295043965,288.24,0.00021963,2]
[311664092,1705295085994,523.24,0.00021942,2]
[311664093,1705295093221,-468.5269346,0.00022101,2]
[311664094,1705295093243,-1531.4730654,0.00022102,2]
[311664095,1705295094248,-1949.85074082,0.00022102,2]
[311664096,1705295094277,-50.14925918,0.00022129,2]
[311664097,1705295194243,200.0,0.00021129,2]
[311664098,1705295237966,235.65,0.00020246,2]
[311664103,1705295355726,4000.0,0.00021928,2]
[311664104,1705295402924,1417.92798025,0.00020246,5]
[311664118,1705295432555,-946.40576412,0.00022149,2]
[311664119,1705295432568,-416.62469098,0.00022149,2]
[311664120,1705295432578,-39.99328497,0.0002215,2]
[311664121,1705295432623,-190.14671503,0.0002215,2]
[311664122,1705295432633,-142.86144202,0.0002218,2]
[311664123,1705295432645,-15.13855798,0.0002218,2]
[311664124,1705295432654,-183.23,0.00022191,2]
[311664125,1705295432663,-181.08,0.00022251,2]
[311664126,1705295432672,-123.33550943,0.00022275,2]
[311664127,1705295432684,-130.61449057,0.00022275,2]
[311664128,1705295432694,-733.09095357,0.00022308,2]
[311664129,1705295432703,-172.35945424,0.000224,2]
[311664130,1705295432712,-544.84210457,0.000225,2]
[311664131,1705295432722,-235.65,0.0002251,2]
[311664132,1705295432732,-150.19,0.00022585,2]
[311664133,1705295432742,-2000.0,0.000226,2]
[311664134,1705295432751,-200.0,0.00022624,4]
[311664135,1705295432760,-400.9,0.00022659,2]
[311664136,1705295432770,-365.8,0.000227,2]
[311664137,1705295432780,-294.11,0.000227,2]
[311664138,1705295432789,-150.0,0.000227,2]
[311664139,1705295432798,-158.0,0.00022757,2]
[311664140,1705295432808,-172.35945419,0.0002284,2]
[311664141,1705295432821,-302.92,0.00022878,2]
[311664142,1705295432830,-155.33379424,0.00022899,2]
[311664143,1705295432840,-1000.0,0.000229,2]
[311664144,1705295432850,-500.0,0.000229,2]
[311664145,1705295432859,-309.9094,0.000229,2]
[311664146,1705295432868,-7854.7345908,0.000229,2]
[311664147,1705295432880,-2504.60264366,0.000229,2]
[311664154,1705295433008,-1000.0,0.000229,2]
[311664157,1705295433034,-1124.27359866,0.000229,2]
[311664158,1705295433046,-677.95451397,0.000229,2]
[311664159,1705295433058,-2172.92551066,0.000229,2]
[311664160,1705295433091,-6147.65048079,0.000229,2]
[311664161,1705295433148,-9641.82812229,0.000229,2]
[311664177,1705295437919,-114178.85060425,0.000229,2]
[311664178,1705295437977,-253.89399304,0.000229,2]
[311664179,1705295437988,-3453.07703197,0.000229,2]
[311664180,1705295438035,-42732.71404714,0.000229,2]
[311664181,1705295438092,-36084.094024,0.000229,2]
[311664182,1705295438207,-462.2961555,0.000229,2]
[311664183,1705295438220,-858.74623956,0.000229,2]
[311664299,1705295440952,-1283.25747675,0.000229,2]
[311664300,1705295440964,-3437.94776105,0.000229,2]
[311664304,1705295442874,-2397.92707227,0.000229,2]
[311664305,1705295442885,-1267.53629767,0.000229,2]
[311664306,1705295443016,-4719.61047034,0.000229,2]
[311664347,1705295445973,-150.00000001,0.00022732,2]
[311664348,1705295445982,-2017.77944774,0.000229,2]
[311664349,1705295446077,-441.67611456,0.000229,2]
[311664350,1705295446137,-286.62380333,0.000229,2]
[311664351,1705295446146,-314.34,0.00022978,2]
[311664352,1705295446155,-150.0,0.00022978,2]
[311664353,1705295446164,-302.69,0.00022978,2]
[311664354,1705295446174,-158.14,0.00022979,2]
[311664355,1705295446183,-179.94228658,0.0002299,2]
[311664356,1705295446192,-1009.26391009,0.00022998,2]
[311664357,1705295446204,-1107.06037291,0.00022998,2]
[311664358,1705295446213,-1896.55093422,0.00022998,2]
[311664359,1705295446222,-268.43974838,0.00022998,2]
[311664360,1705295446231,-157.69193417,0.00022999,2]
[311664361,1705295446240,-574.10754047,0.00022999,2]
[311664362,1705295446249,-5945.3360945,0.00022999,2]
[311664364,1705295446259,-215.32122824,0.00022999,2]
[311664366,1705295446268,-3294.38484961,0.00022999,2]
[311664367,1705295446277,-549.40590529,0.00022999,5]
[311664368,1705295446287,-500.0,0.00022999,2]
[311664369,1705295446297,-500.0,0.00022999,2]
[311664370,1705295446306,-500.0,0.00022999,2]
[311664371,1705295446315,-500.0,0.00022999,2]
[311664372,1705295446327,-500.0,0.00022999,2]
[311664373,1705295446336,-500.0,0.00022999,2]
[311664374,1705295446345,-500.0,0.00022999,2]
[311664375,1705295446354,-500.0,0.00022999,2]
[311664376,1705295446363,-500.0,0.00022999,2]
[311664377,1705295446371,-500.0,0.00022999,2]
[311664378,1705295446381,-500.0,0.00022999,2]
[311664379,1705295446390,-500.0,0.00022999,2]
[311664380,1705295446399,-294.66558462,0.00022999,2]
[311664381,1705295446415,-205.33441538,0.00022999,2]
[311664382,1705295446424,-500.0,0.00022999,2]
[311664383,1705295446434,-500.0,0.00022999,2]
[311664384,1705295446443,-500.0,0.00022999,2]
[311664385,1705295446452,-500.0,0.00022999,2]
[311664386,1705295446461,-500.0,0.00022999,2]
[311664387,1705295446470,-500.0,0.00022999,2]
[311664388,1705295446479,-409.61697794,0.00022999,2]
[311664389,1705295446488,-16230.32680953,0.00023,2]
[311664390,1705295446500,-6209.5270785,0.00023,2]
[311664391,1705295446526,-2750.31579908,0.00023,2]
[311664392,1705295631000,178.29,0.00022058,2]
[311664393,1705295661103,234.29,0.00020084,2]
[311664394,1705295781505,257.35,0.00022009,2]
[311664395,1705295805730,174.36,0.00021993,2]
[311664396,1705295809336,250.0,0.00021971,2]
[311664397,1705295904913,157.47,0.00022085,2]
[311664398,1705295910480,623.62937117,0.00022094,2]
[311664399,1705295910505,1371.37062883,0.00022094,2]
[311664400,1705295950076,542.12,0.00021829,2]
[311664401,1705295984055,2000.0,0.00021852,2]
[311664402,1705296067238,276.0,0.0002135,2]
[311664403,1705296068255,201.38,0.00021851,2]
[311664404,1705296139421,234.37,0.00019918,2]
[311664405,1705296211364,259.88,0.00021792,2]
[311664406,1705296240573,-155.0,0.000221,2]
[311664407,1705296240595,-155.0,0.000221,2]
[311664408,1705296240617,-516.17501819,0.00022101,2]
[311664409,1705296240638,-494.36413092,0.00022102,2]
[311664410,1705296240661,-200.0,0.00022119,2]
[311664411,1705296240684,-156.4,0.00022181,2]
[311664412,1705296240707,-234.37,0.00022182,2]
[311664413,1705296292264,156.4,0.00021972,2]
[311664414,1705296292473,156.4,0.00022086,2]
[311664415,1705296311602,250.0,0.000205,2]
[311664416,1705296318052,516.17501819,0.000222,2]
[311664417,1705296385827,-156.4,0.00022201,2]
[311664418,1705296385850,-161.76801287,0.00022292,2]
[311664419,1705296385872,-1684.78126489,0.000223,2]
[311664420,1705296385901,-156.4,0.00022315,2]
[311664421,1705296385922,-499.99,0.00022392,2]
[311664422,1705296385943,-156.4,0.0002243,2]
[311664423,1705296385963,-3067.86,0.00022497,2]
[311664424,1705296385985,-161.76801283,0.00022504,2]
[311664425,1705296386007,-156.4,0.00022544,2]
[311664426,1705296386028,-312.42571287,0.0002257,2]
[311664427,1705296386049,-850.97273767,0.00022583,2]
[311664428,1705296386070,-547.22,0.00022584,2]
[311664429,1705296386092,-156.4,0.00022659,2]
[311664430,1705296386113,-158.15556964,0.00022684,2]
[311664431,1705296386134,-200.0,0.00022698,2]
[311664432,1705296386154,-632.23892056,0.000227,2]
[311664433,1705296386176,-4014.6754,0.000227,2]
[311664434,1705296386197,-161.76801283,0.00022717,2]
[311664435,1705296386218,-1405.01937321,0.00022769,2]
[311664436,1705296386239,-259.88,0.0002277,2]
[311664437,1705296386260,-156.4,0.00022773,2]
[311664438,1705296386282,-285.27830433,0.00022798,2]
[311664439,1705296386302,-408.91722486,0.00022799,2]
[311664440,1705296386322,-4265.12,0.00022799,2]
[311664441,1705296386342,-4265.12,0.00022799,2]
[311664442,1705296386365,-4265.12,0.00022799,2]
[311664443,1705296386387,-4265.12,0.00022799,2]
[311664444,1705296386408,-4265.12,0.00022799,2]
[311664445,1705296386428,-4265.12,0.00022799,2]
[311664446,1705296386448,-4265.12,0.00022799,2]
[311664447,1705296386468,-4265.12,0.00022799,2]
[311664448,1705296386489,-4265.12,0.00022799,2]
[311664449,1705296386510,-4265.12,0.00022799,2]
[311664450,1705296386530,-4265.12,0.00022799,2]
[311664451,1705296386550,-4265.12,0.00022799,2]
[311664452,1705296386571,-4265.12,0.00022799,2]
[311664453,1705296386591,-4265.12,0.00022799,2]
[311664454,1705296386611,-4265.12,0.00022799,2]
[311664455,1705296386631,-4265.12,0.00022799,2]
[311664456,1705296386652,-4265.12,0.00022799,2]
[311664457,1705296386673,-4265.12,0.00022799,2]
[311664458,1705296386692,-4265.12,0.00022799,2]
[311664459,1705296386711,-4265.12,0.00022799,2]
[311664460,1705296386731,-4265.12,0.00022799,2]
[311664461,1705296386752,-4265.12,0.00022799,2]
[311664462,1705296386772,-4265.12,0.00022799,2]
[311664463,1705296386793,-4265.20375087,0.00022799,2]